fUSD/lending_fUSD_20240421
["ID","MTS","AMOUNT","RATE_DAILY","PERIOD"]
[323139729,1713707443083,-500.0,0.0001671,2]
[323139730,1713707443092,-500.0,0.0001671,2]
[323139732,1713707443101,-500.0,0.0001671,2]
[323139733,1713707443110,-500.0,0.0001671,2]
[323139734,1713707443119,-2800.62,0.0001671,2]
[323139735,1713707443128,-500.0,0.0001671,2]
[323139736,1713707443137,-1043.21,0.0001671,2]
[323139737,1713707443146,-500.0,0.0001671,2]
[323139738,1713707443155,-500.7748738,0.0001671,2]
[323139739,1713707443164,-500.0,0.0001671,2]
[323139740,1713707443173,-500.0,0.0001671,2]
[323139741,1713707443182,-500.0,0.0001671,2]
[323139742,1713707443194,-500.0,0.0001671,2]
[323139743,1713707443203,-500.0,0.0001671,2]
[323139744,1713707443212,-1597.37,0.0001671,2]
[323139745,1713707443221,-500.0,0.0001671,2]
[323139746,1713707443231,-500.0,0.0001671,2]
[323139747,1713707443240,-500.0,0.0001671,2]
[323139748,1713707443249,-1250.84,0.0001671,2]
[323139749,1713707443259,-276.87156345,0.0001671,2]
[323139750,1713707443269,-607.21,0.0001671,2]
[323139751,1713707443278,-809.01,0.0001671,2]
[323139752,1713707443287,-699.92,0.0001671,2]
[323139753,1713707443296,-500.0,0.0001671,2]
[323139754,1713707443306,-1083.51,0.0001671,2]
[323139755,1713707443314,-500.0,0.0001671,2]
[323139756,1713707443324,-500.0,0.0001671,2]
[323139758,1713707443334,-500.0,0.0001671,2]
[323139759,1713707443343,-500.0,0.0001671,2]
[323139762,1713707443353,-500.0,0.0001671,2]
[323139765,1713707443362,-500.0,0.0001671,2]
[323139766,1713707443372,-500.0,0.0001671,2]
[323139768,1713707443382,-500.0,0.0001671,2]
[323139769,1713707443390,-985.92,0.0001671,2]
[323139770,1713707443399,-5474.95,0.0001671,2]
[323139771,1713707443409,-500.0,0.0001671,2]
[323139772,1713707443418,-1158.52,0.0001671,2]
[323139773,1713707443427,-500.0,0.0001671,2]
[323139774,1713707443437,-500.0,0.0001671,2]
[323139775,1713707443446,-500.0,0.0001671,2]
[323139776,1713707443455,-630.38,0.0001671,2]
[323139777,1713707443464,-500.0,0.0001671,2]
[323139778,1713707443473,-500.0,0.0001671,2]
[323139779,1713707443483,-500.0,0.0001671,2]
[323139780,1713707443492,-500.0,0.0001671,2]
[323139781,1713707443501,-531.06,0.0001671,2]
[323139782,1713707443510,-500.0,0.0001671,2]
[323139783,1713707443519,-993.51,0.0001671,2]
[323139784,1713707443715,-500.0,0.0001671,2]
[323139785,1713707443725,-500.0,0.0001671,2]
[323139786,1713707443734,-802.39,0.0001671,2]
[323139787,1713707443744,-622.46,0.0001671,2]
[323139788,1713707443753,-500.0,0.0001671,2]
[323139789,1713707443762,-500.0,0.0001671,2]
[323139790,1713707443772,-500.0,0.0001671,2]
[323139791,1713707443781,-545.32,0.0001671,2]
[323139792,1713707443790,-500.0,0.0001671,2]
[323139793,1713707443800,-500.0,0.0001671,2]
[323139794,1713707443810,-1037.97,0.0001671,2]
[323139795,1713707443819,-1000.0,0.0001671,2]
[323139796,1713707443829,-500.0,0.0001671,2]
[323139797,1713707443838,-603.9,0.0001671,2]
[323139798,1713707443847,-500.0,0.0001671,2]
[323139799,1713707443857,-500.0,0.0001671,2]
[323139800,1713707443866,-500.0,0.0001671,2]
[323139801,1713707443875,-1712.92,0.0001671,2]
[323139802,1713707443884,-500.0,0.0001671,2]
[323139803,1713707443893,-500.0,0.0001671,2]
[323139804,1713707443902,-500.0,0.00016711,2]
[323139805,1713707443912,-500.0,0.00016711,2]
[323139806,1713707443921,-500.0,0.00016711,2]
[323139807,1713707443930,-500.0,0.00016711,2]
[323139808,1713707443940,-611.86,0.00016711,2]
[323139809,1713707443949,-500.0,0.00016711,2]
[323139810,1713707443960,-500.0,0.00016711,2]
[323139811,1713707443969,-1085.48,0.00016711,2]
[323139812,1713707443978,-1244.62,0.00016711,2]
[323139813,1713707443987,-831.75,0.00016711,2]
[323139814,1713707443996,-500.0,0.00016711,2]
[323139815,1713707444006,-683.17,0.00016711,2]
[323139816,1713707444015,-500.0,0.00016711,2]
[323139817,1713707444024,-525.3,0.00016711,2]
[323139818,1713707444033,-500.0,0.00016712,2]
[323139819,1713707444042,-500.0,0.00016712,2]
[323139820,1713707444052,-500.0,0.00016712,2]
[323139821,1713707444063,-500.0,0.00016712,2]
[323139822,1713707444072,-500.0,0.00016712,2]
[323139823,1713707444081,-500.0,0.00016712,2]
[323139824,1713707444090,-500.0,0.00016712,2]
[323139825,1713707444099,-500.0,0.00016712,2]
[323139826,1713707444109,-500.0,0.00016712,2]
[323139827,1713707444118,-500.0,0.00016712,2]
[323139828,1713707444128,-500.0,0.00016712,2]
[323139829,1713707444137,-500.0,0.00016712,2]
[323139830,1713707444146,-500.0,0.00016712,2]
[323139831,1713707444155,-500.0,0.00016712,2]
[323139832,1713707444165,-500.0,0.00016712,2]
[323139833,1713707444174,-624.11,0.00016712,2]
[323139834,1713707444183,-500.0,0.00016712,2]
[323139835,1713707444193,-501.52,0.00016712,2]
[323139836,1713707444203,-500.0,0.00016712,2]
[323139837,1713707444212,-500.0,0.00016712,2]
[323139838,1713707444221,-554.86,0.00016712,2]
[323139839,1713707444230,-590.97,0.00016712,2]
[323139840,1713707444239,-500.0,0.00016712,2]
[323139841,1713707444248,-500.0,0.00016712,2]
[323139842,1713707444260,-500.0,0.00016712,2]
[323139843,1713707444270,-500.0,0.00016712,2]
[323139844,1713707444280,-500.0,0.00016712,2]
[323139845,1713707444289,-500.0,0.00016712,2]
[323139846,1713707444299,-500.0,0.00016712,2]
[323139847,1713707444310,-500.0,0.00016712,2]
[323139848,1713707444318,-500.0,0.00016712,2]
[323139849,1713707444327,-500.0,0.00016712,2]
[323139850,1713707444336,-507.08,0.00016712,2]
[323139851,1713707444346,-500.0,0.00016712,2]
[323139852,1713707444355,-500.0,0.00016712,2]
[323139853,1713707444366,-500.0,0.00016712,2]
[323139854,1713707444375,-537.42,0.00016712,2]
[323139855,1713707444384,-502.18,0.00016712,2]
[323139856,1713707444394,-500.0,0.00016712,2]
[323139857,1713707444403,-686.1,0.00016712,2]
[323139858,1713707444412,-500.0,0.00016712,2]
[323139859,1713707444422,-787.4,0.00016712,2]
[323139860,1713707444431,-348.48157151,0.00016712,2]
[323139861,1713707444439,-500.0,0.00016712,2]
[323139862,1713707444449,-500.0,0.00016712,2]
[323139863,1713707444459,-546.29,0.00016712,2]
[323139864,1713707444468,-500.0,0.00016712,2]
[323139865,1713707444477,-2473.81,0.00016712,2]
[323139866,1713707444486,-500.0,0.00016712,2]
[323139867,1713707444496,-500.0,0.00016712,2]
[323139868,1713707444505,-500.0,0.00016712,2]
[323139869,1713707444514,-607.89,0.00016712,2]
[323139870,1713707444523,-500.0,0.00016712,2]
[323139871,1713707444533,-500.0,0.00016712,2]
[323139872,1713707444543,-666.05,0.00016712,2]
[323139873,1713707444553,-631.03,0.00016712,2]
[323139874,1713707444564,-643.31,0.00016712,2]
[323139875,1713707444574,-500.0,0.00016712,2]
[323139876,1713707444583,-500.0,0.00016712,2]
[323139877,1713707444592,-1118.62,0.00016712,2]
[323139878,1713707444602,-500.0,0.00016712,2]
[323139879,1713707444611,-500.0,0.00016712,2]
[323139880,1713707444620,-500.0,0.00016712,2]
[323139881,1713707444630,-500.0,0.00016712,2]
[323139882,1713707444639,-500.0,0.00016712,2]
[323139883,1713707444648,-500.0,0.00016712,2]
[323139884,1713707444658,-500.0,0.00016712,2]
[323139885,1713707444668,-500.0,0.00016712,2]
[323139886,1713707444677,-500.0,0.00016712,2]
[323139887,1713707444686,-500.0,0.00016712,2]
[323139888,1713707444696,-500.0,0.00016712,2]
[323139889,1713707444705,-500.0,0.00016712,2]
[323139890,1713707444714,-500.0,0.00016712,2]
[323139891,1713707444724,-500.0,0.00016712,2]
[323139892,1713707444733,-745.95,0.00016712,2]
[323139893,1713707444742,-500.0,0.00016712,2]
[323139894,1713707444752,-500.0,0.00016712,2]
[323139895,1713707444761,-500.0,0.00016712,2]
[323139896,1713707444770,-500.0,0.00016712,2]
[323139897,1713707444780,-500.0,0.00016712,2]
[323139898,1713707444788,-611.47,0.00016712,2]
[323139899,1713707444798,-500.0,0.00016712,2]
[323139900,1713707444807,-500.0,0.00016712,2]
[323139901,1713707444817,-156.852872,0.00016712,2]
[323139902,1713707444826,-2379.14724,0.0001682,2]
[323139903,1713707444836,-814.74,0.00016982,2]
[323139904,1713707444846,-1005.73,0.00016982,2]
[323139905,1713707444855,-623.41,0.00016982,2]
[323139906,1713707444865,-3477.15,0.00016982,2]
[323139907,1713707444874,-819.88,0.00016982,2]
[323139908,1713707444884,-998.0,0.00016982,2]
[323139909,1713707444893,-834.13,0.00016982,2]
[323139910,1713707444902,-2826.36,0.00016982,2]
[323139911,1713707444911,-500.0,0.00016982,2]
[323139912,1713707444922,-2110.56,0.00016982,2]
[323139913,1713707444932,-621.30953414,0.00016982,2]
[323139914,1713707444942,-1229.48,0.00016982,2]
[323139915,1713707444952,-669.03,0.00016982,2]
[323139916,1713707444961,-564.14,0.00016982,2]
[323139917,1713707444970,-610.7,0.00016982,2]
[323139918,1713707444979,-929.05,0.00016982,2]
[323139919,1713707444989,-500.0,0.00016983,2]
[323139920,1713707444998,-500.0,0.00016983,2]
[323139921,1713707445007,-527.75,0.00016983,2]
[323139922,1713707445017,-637.33,0.00016983,2]
[323139923,1713707445026,-710.46,0.00016983,2]
[323139924,1713707445036,-500.0,0.00016983,2]
[323139925,1713707445045,-493.92,0.00016983,2]
[323139926,1713707445055,-224.7,0.00016983,2]
[323139927,1713707445065,-500.0,0.00016983,2]
[323139928,1713707445074,-500.0,0.00016983,2]
[323139929,1713707445083,-500.0,0.00016983,2]
[323139930,1713707445093,-500.0,0.00016983,2]
[323139931,1713707445102,-500.0,0.00016983,2]
[323139932,1713707445111,-586.64,0.00016983,2]
[323139933,1713707445120,-617.27,0.00016983,2]
[323139934,1713707445129,-205.19,0.00016983,2]
[323139935,1713707445139,-514.38,0.00016983,2]
[323139936,1713707445148,-500.0,0.00016983,2]
[323139937,1713707445158,-588.58,0.00016983,2]
[323139938,1713707445167,-372.64,0.00016983,2]
[323139939,1713707445176,-260.71,0.00016983,2]
[323139940,1713707445185,-500.0,0.00016983,2]
[323139941,1713707445197,-500.0,0.00016983,2]
[323139942,1713707445206,-602.61,0.00016983,2]
[323139943,1713707445215,-500.0,0.00016983,2]
[323139944,1713707445224,-500.0,0.00016983,2]
[323139945,1713707445242,-500.0,0.00016983,2]
[323139946,1713707445257,-323.24,0.00016983,2]
[323139947,1713707445272,-500.0,0.00016983,2]
[323139948,1713707445284,-310.88,0.00016983,2]
[323139949,1713707445296,-304.31,0.00016983,2]
[323139950,1713707445309,-394.54,0.00016983,2]
[323139951,1713707445323,-466.53,0.00016983,2]
[323139952,1713707445336,-297.82,0.00016983,2]
[323139953,1713707445349,-629.19,0.00016983,2]
[323139954,1713707445362,-500.0,0.00016983,2]
[323139955,1713707445372,-418.9,0.00016983,2]
[323139956,1713707445385,-500.0,0.00016983,2]
[323139957,1713707445397,-11348.69,0.00016983,2]
[323139958,1713707445410,-548.11,0.00016983,2]
[323139959,1713707445422,-800.01,0.00016983,2]
[323139960,1713707445435,-500.0,0.00016983,2]
[323139961,1713707445448,-500.0,0.00016983,2]
[323139962,1713707445459,-500.0,0.00016983,2]
[323139963,1713707445472,-500.0,0.00016983,2]
[323139964,1713707445485,-1304.44,0.00016983,2]
[323139965,1713707445500,-500.0,0.00016983,2]
[323139966,1713707445513,-859.05,0.00016983,2]
[323139967,1713707445525,-500.0,0.00016983,2]
[323139968,1713707445538,-912.21,0.00016983,2]
[323139969,1713707445550,-837.9,0.00016983,2]
[323139970,1713707445562,-647.98,0.00016983,2]
[323139971,1713707445575,-500.0,0.00016983,2]
[323139972,1713707445590,-1005.47,0.00016983,2]
[323139973,1713707445603,-3557.51,0.00016983,2]
[323139974,1713707445617,-1035.77,0.00016983,2]
[323139975,1713707445629,-500.0,0.00016983,2]
[323139976,1713707445640,-777.16,0.00016983,2]
[323139977,1713707445651,-500.0,0.00016983,2]
[323139978,1713707445662,-619.38,0.00016983,2]
[323139979,1713707445675,-837.69,0.00016983,2]
[323139980,1713707445686,-976.86,0.00016983,2]
[323139981,1713707445699,-982.42,0.00016983,2]
[323139982,1713707445712,-1024.6,0.00016983,2]
[323139983,1713707445722,-500.0,0.00016983,2]
[323139984,1713707445733,-1189.47,0.00016983,2]
[323139985,1713707445745,-2071.49,0.00016983,2]
[323139986,1713707445757,-1571.81,0.00016983,2]
[323139987,1713707445768,-1022.31,0.00016983,2]
[323139988,1713707445781,-1773.08,0.00016983,2]
[323139989,1713707445793,-2949.54,0.00016983,2]
[323139990,1713707445804,-500.0,0.00016983,2]
[323139991,1713707445818,-1455.34,0.00016983,2]
[323139992,1713707445830,-1689.47,0.00016983,2]
[323139993,1713707445845,-500.0,0.00016983,2]
[323139994,1713707445857,-500.0,0.00016983,2]
[323139995,1713707445869,-1616.12,0.00016983,2]
[323139996,1713707445881,-500.0,0.00016983,2]
[323139997,1713707445893,-500.0,0.00016983,2]
[323139998,1713707445904,-600.65,0.00016983,2]
[323139999,1713707445916,-1201.38,0.00016983,2]
[323140000,1713707445927,-735.22,0.00016983,2]
[323140001,1713707445939,-500.0,0.00016983,2]
[323140002,1713707445951,-500.0,0.00016983,2]
[323140003,1713707445963,-500.0,0.00016983,2]
[323140004,1713707445975,-1418.08,0.00016983,2]
[323140005,1713707445987,-1242.2,0.00016983,2]
[323140006,1713707445998,-1625.52,0.00016983,2]
[323140007,1713707446010,-927.36,0.00016983,2]
[323140008,1713707446022,-1629.03,0.00016983,2]
[323140009,1713707446034,-500.0,0.00016983,2]
[323140010,1713707446046,-623.84,0.00016984,2]
[323140011,1713707446058,-605.56,0.00016984,2]
[323140012,1713707446070,-892.02,0.00016984,2]
[323140013,1713707446082,-603.85,0.00016984,2]
[323140014,1713707446094,-1203.37,0.00016984,2]
[323140015,1713707446105,-500.0,0.00016984,2]
[323140016,1713707446117,-689.95,0.00016984,2]
[323140017,1713707446128,-595.79,0.00016984,2]
[323140018,1713707446139,-1118.52,0.00016984,2]
[323140019,1713707446151,-306.54,0.00016984,2]
[323140020,1713707446163,-500.0,0.00016984,2]
[323140021,1713707446174,-1113.45,0.00016984,2]
[323140022,1713707446186,-758.95,0.00016984,2]
[323140023,1713707446200,-538.92,0.00016984,2]
[323140024,1713707446212,-500.0,0.00016984,2]
[323140025,1713707446224,-500.0,0.00016984,2]
[323140026,1713707446236,-500.0,0.00016984,2]
[323140027,1713707446247,-253.22,0.00016984,2]
[323140028,1713707446258,-170.04,0.00016984,2]
[323140029,1713707446270,-905.09,0.00016984,2]
[323140030,1713707446281,-508.75,0.00016984,2]
[323140031,1713707446292,-500.0,0.00016984,2]
[323140032,1713707446304,-353.86,0.00016984,2]
[323140033,1713707446318,-500.0,0.00016984,2]
[323140034,1713707446329,-500.0,0.00016984,2]
[323140035,1713707446341,-634.5,0.00016984,2]
[323140036,1713707446353,-287.23,0.00016984,2]
[323140037,1713707446365,-500.0,0.00016984,2]
[323140038,1713707446377,-500.0,0.00016984,2]
[323140039,1713707446388,-500.0,0.00016984,2]
[323140040,1713707446400,-558.9,0.00016984,2]
[323140041,1713707446411,-500.0,0.00016984,2]
[323140042,1713707446422,-500.0,0.00016984,2]
[323140043,1713707446434,-500.0,0.00016984,2]
[323140044,1713707446446,-500.0,0.00016984,2]
[323140045,1713707446457,-442.44,0.00016984,2]
[323140046,1713707446469,-804.41,0.00016984,2]
[323140047,1713707446480,-523.87,0.00016984,2]
[323140048,1713707446492,-500.0,0.00016984,2]
[323140049,1713707446504,-500.0,0.00016984,2]
[323140050,1713707446516,-611.49,0.00016984,2]
[323140051,1713707446527,-500.0,0.00016984,2]
[323140052,1713707446539,-431.28,0.00016984,2]
[323140053,1713707446552,-222.22,0.00016984,2]
[323140054,1713707446566,-665.96,0.00016984,2]
[323140055,1713707446577,-727.6,0.00016984,2]
[323140056,1713707446589,-500.0,0.00016984,2]
[323140057,1713707446600,-639.63,0.00016984,2]
[323140058,1713707446612,-664.11,0.00016984,2]
[323140059,1713707446623,-500.0,0.00016984,2]
[323140060,1713707446636,-500.0,0.00016984,2]
[323140061,1713707446648,-864.7,0.00016984,2]
[323140062,1713707446660,-500.0,0.00016984,2]
[323140063,1713707446672,-500.0,0.00016984,2]
[323140064,1713707446684,-500.0,0.00016984,2]
[323140065,1713707446695,-500.0,0.00016984,2]
[323140066,1713707446707,-925.58,0.00016984,2]
[323140067,1713707446718,-636.37,0.00016984,2]
[323140068,1713707446730,-4224.5,0.00016984,2]
[323140069,1713707446743,-500.0,0.00016984,2]
[323140070,1713707446754,-500.0,0.00016984,2]
[323140071,1713707446766,-2800.62,0.00016984,2]
[323140072,1713707446779,-1043.21,0.00016984,2]
[323140073,1713707446791,-500.0,0.00016984,2]
[323140074,1713707446803,-1597.37,0.00016984,2]
[323140075,1713707446817,-500.0,0.00016984,2]
[323140076,1713707446830,-1250.84,0.00016984,2]
[323140077,1713707446842,-607.21,0.00016984,2]
[323140078,1713707446854,-809.01,0.00016984,2]
[323140079,1713707446867,-699.92,0.00016984,2]
[323140080,1713707446879,-500.0,0.00016984,2]
[323140081,1713707446892,-1083.51,0.00016984,2]
[323140082,1713707446901,-500.0,0.00016984,2]
[323140083,1713707446910,-522.07,0.00016984,2]
[323140084,1713707446920,-500.0,0.00016984,2]
[323140085,1713707446929,-500.0,0.00016984,2]
[323140086,1713707446939,-237.65803823,0.00016984,2]
[323140087,1713707446948,-985.92,0.00016984,2]
[323140088,1713707446958,-5474.95,0.00016984,2]
[323140089,1713707446967,-500.0,0.00016984,2]
[323140090,1713707446977,-1158.52,0.00016984,2]
[323140091,1713707446986,-500.0,0.00016984,2]
[323140092,1713707446995,-500.0,0.00016984,2]
[323140093,1713707447005,-500.0,0.00016984,2]
[323140094,1713707447014,-500.0,0.00016984,2]
[323140095,1713707447024,-500.0,0.00016984,2]
[323140096,1713707447033,-500.0,0.00016984,2]
[323140097,1713707447042,-531.06,0.00016984,2]
[323140098,1713707447051,-500.0,0.00016984,2]
[323140099,1713707447063,-993.51,0.00016984,2]
[323140100,1713707447072,-500.0,0.00016984,2]
[323140101,1713707447081,-500.0,0.00016984,2]
[323140102,1713707447367,-802.39,0.00016984,2]
[323140103,1713707447393,-622.46,0.00016984,2]
[323140104,1713707447408,-500.0,0.00016984,2]
[323140105,1713707447418,-500.0,0.00016984,2]
[323140106,1713707447427,-500.0,0.00016984,2]
[323140107,1713707447436,-545.32,0.00016984,2]
[323140108,1713707447446,-500.0,0.00016984,2]
[323140109,1713707447455,-500.0,0.00016984,2]
[323140110,1713707447465,-1037.97,0.00016984,2]
[323140111,1713707447474,-1000.0,0.00016984,2]
[323140112,1713707447484,-500.0,0.00016984,2]
[323140113,1713707447493,-603.9,0.00016984,2]
[323140114,1713707447503,-500.0,0.00016984,2]
[323140115,1713707447513,-500.0,0.00016984,2]
[323140116,1713707447522,-500.0,0.00016984,2]
[323140117,1713707447532,-1712.92,0.00016984,2]
[323140118,1713707447541,-500.0,0.00016984,2]
[323140119,1713707447551,-500.0,0.00016985,2]
[323140120,1713707447565,-500.0,0.00016985,2]
[323140121,1713707447574,-500.0,0.00016985,2]
[323140122,1713707447584,-500.0,0.00016985,2]
[323140123,1713707447593,-611.86,0.00016985,2]
[323140124,1713707447603,-500.0,0.00016985,2]
[323140125,1713707447613,-500.0,0.00016985,2]
[323140126,1713707447623,-1085.48,0.00016985,2]
[323140127,1713707447632,-1244.62,0.00016985,2]
[323140128,1713707447642,-831.75,0.00016985,2]
[323140129,1713707447652,-500.0,0.00016985,2]
[323140130,1713707447662,-683.17,0.00016985,2]
[323140131,1713707447672,-500.0,0.00016985,2]
[323140132,1713707447681,-525.3,0.00016985,2]
[323140133,1713707447691,-500.0,0.00016986,2]
[323140134,1713707447700,-500.0,0.00016986,2]
[323140135,1713707447709,-500.0,0.00016986,2]
[323140136,1713707447719,-500.0,0.00016986,2]
[323140137,1713707447728,-500.0,0.00016986,2]
[323140138,1713707447737,-500.0,0.00016986,2]
[323140139,1713707447747,-500.0,0.00016986,2]
[323140140,1713707447756,-500.0,0.00016986,2]
[323140141,1713707447765,-500.0,0.00016986,2]
[323140142,1713707447775,-500.0,0.00016986,2]
[323140143,1713707447785,-500.0,0.00016986,2]
[323140144,1713707447794,-263.37,0.00016986,2]
[323140145,1713707447803,-299.4,0.00016986,2]
[323140146,1713707447816,-500.0,0.00016986,2]
[323140147,1713707447826,-500.0,0.00016986,2]
[323140148,1713707447836,-624.11,0.00016986,2]
[323140149,1713707447845,-500.0,0.00016986,2]
[323140150,1713707447855,-501.52,0.00016986,2]
[323140151,1713707447863,-500.0,0.00016986,2]
[323140152,1713707447873,-500.0,0.00016986,2]
[323140153,1713707447883,-554.86,0.00016986,2]
[323140154,1713707447892,-590.97,0.00016986,2]
[323140155,1713707447902,-500.0,0.00016986,2]
[323140156,1713707447911,-500.0,0.00016986,2]
[323140157,1713707447920,-500.0,0.00016986,2]
[323140158,1713707447930,-500.0,0.00016986,2]
[323140159,1713707447939,-500.0,0.00016986,2]
[323140160,1713707447948,-500.0,0.00016986,2]
[323140161,1713707447958,-500.0,0.00016986,2]
[323140162,1713707447967,-500.0,0.00016986,2]
[323140163,1713707447976,-500.0,0.00016986,2]
[323140164,1713707447986,-500.0,0.00016986,2]
[323140165,1713707447995,-507.08,0.00016986,2]
[323140166,1713707448004,-500.0,0.00016986,2]
[323140167,1713707448014,-500.0,0.00016986,2]
[323140168,1713707448023,-500.0,0.00016986,2]
[323140169,1713707448032,-537.42,0.00016986,2]
[323140170,1713707448041,-502.18,0.00016986,2]
[323140171,1713707448051,-500.0,0.00016986,2]
[323140172,1713707448062,-686.1,0.00016986,2]
[323140173,1713707448071,-500.0,0.00016986,2]
[323140174,1713707448080,-787.4,0.00016986,2]
[323140175,1713707448090,-500.0,0.00016986,2]
[323140176,1713707448100,-500.0,0.00016986,2]
[323140177,1713707448109,-546.29,0.00016986,2]
[323140178,1713707448118,-500.0,0.00016986,2]
[323140179,1713707448128,-2473.81,0.00016986,2]
[323140180,1713707448137,-500.0,0.00016986,2]
[323140181,1713707448146,-500.0,0.00016986,2]
[323140182,1713707448155,-500.0,0.00016986,2]
[323140183,1713707448166,-607.89,0.00016986,2]
[323140184,1713707448175,-500.0,0.00016986,2]
[323140185,1713707448185,-500.0,0.00016986,2]
[323140186,1713707448197,-666.05,0.00016986,2]
[323140187,1713707448206,-631.03,0.00016986,2]
[323140188,1713707448215,-643.31,0.00016986,2]
[323140189,1713707448225,-500.0,0.00016986,2]
[323140190,1713707448235,-500.0,0.00016986,2]
[323140191,1713707448244,-1118.62,0.00016986,2]
[323140192,1713707448253,-500.0,0.00016986,2]
[323140193,1713707448264,-323.09553357,0.00016986,2]
[323140194,1713707448274,-500.0,0.00016986,2]
[323140195,1713707448284,-500.0,0.00016986,2]
[323140196,1713707448293,-500.0,0.00016986,2]
[323140197,1713707448303,-500.0,0.00016986,2]
[323140198,1713707448315,-500.0,0.00016986,2]
[323140199,1713707448324,-500.0,0.00016986,2]
[323140200,1713707448334,-500.0,0.00016986,2]
[323140201,1713707448343,-500.0,0.00016986,2]
[323140202,1713707448353,-500.0,0.00016986,2]
[323140203,1713707448363,-500.0,0.00016986,2]
[323140204,1713707448372,-500.0,0.00016986,2]
[323140205,1713707448382,-500.0,0.00016986,2]
[323140206,1713707448392,-745.95,0.00016986,2]
[323140207,1713707448401,-500.0,0.00016986,2]
[323140208,1713707448411,-500.0,0.00016986,2]
[323140209,1713707448421,-500.0,0.00016986,2]
[323140210,1713707448430,-500.0,0.00016986,2]
[323140211,1713707448439,-500.0,0.00016986,2]
[323140212,1713707448449,-611.47,0.00016986,2]
[323140213,1713707448458,-500.0,0.00016986,2]
[323140214,1713707448468,-500.0,0.00016986,2]
[323140215,1713707448477,-1147.0,0.00017,3]
[323140216,1713707448486,-1000.0,0.00017,2]
[323140217,1713707448496,-800.0,0.00017,2]
[323140218,1713707448505,-644.85,0.00017124,2]
[323140219,1713707448514,-814.74,0.00017256,2]
[323140220,1713707448524,-1005.73,0.00017256,2]
[323140221,1713707448534,-623.41,0.00017256,2]
[323140222,1713707448543,-3477.15,0.00017256,2]
[323140223,1713707448552,-819.88,0.00017256,2]
[323140224,1713707448564,-998.0,0.00017256,2]
[323140225,1713707448574,-834.13,0.00017256,2]
[323140226,1713707448583,-3004.50780047,0.00017256,2]
[323140227,1713707448593,-1350.58342616,0.00017256,2]
[323140229,1713707448603,-2826.36,0.00017256,2]
[323140230,1713707448612,-500.0,0.00017256,2]
[323140231,1713707448621,-2110.56,0.00017256,2]
[323140232,1713707448630,-1229.48,0.00017256,2]
[323140233,1713707448639,-669.03,0.00017256,2]
[323140234,1713707448649,-610.7,0.00017256,2]
[323140235,1713707448658,-929.05,0.00017256,2]
[323140236,1713707448667,-229.11,0.00017257,2]